bitfinex-derivatives/quotes_BTCF0:USTF0_20240913
["timestamp","ask_amount","ask_price","bid_price","bid_amount"]
[1726238850476,0.085694,58344.0,58340.0,0.001]
[1726238850677,0.085694,58344.0,58341.0,0.085697]
[1726238850880,0.085694,58344.0,58341.0,0.446497]
[1726238851272,0.085694,58344.0,58341.0,0.3608]
[1726238851478,0.2,58346.0,58340.0,0.001]
[1726238851479,0.085696,58343.0,58340.0,0.001]
[1726238851674,0.446498,58341.0,58340.0,0.002]
[1726238851883,0.445498,58341.0,58340.0,0.001]
[1726238852277,0.445498,58341.0,58336.0,0.085704]
[1726238852473,0.444498,58341.0,58336.0,0.085704]
[1726238852674,0.004,58343.0,58337.0,0.2]
[1726238852890,0.004,58343.0,58339.0,0.0857]
[1726238853083,0.007,58341.0,58340.0,0.0867]
[1726238853485,0.007,58341.0,58340.0,0.001]
[1726238853779,0.007,58341.0,58340.0,0.3618]
[1726238854879,0.002,58341.0,58340.0,0.5608]
[1726238855081,0.002,58341.0,58340.0,0.6465]
[1726238855478,0.004,58341.0,58340.0,0.6465]
[1726238855675,0.011,58341.0,58340.0,0.6475]
[1726238856683,0.011,58341.0,58340.0,0.65402148]
[1726238858675,0.011,58341.0,58340.0,0.75172148]
[1726238859580,0.011,58341.0,58340.0,1.86596148]
[1726238859776,0.011,58341.0,58340.0,2.03736148]
[1726238859987,0.007,58354.0,58353.0,0.085681]
[1726238860283,0.003,58354.0,58353.0,0.646481]
[1726238861188,0.003,58354.0,58353.0,0.446481]
[1726238861389,0.003,58354.0,58349.0,0.085686]
[1726238861586,0.003,58354.0,58345.0,0.3608]
[1726238861587,0.08469,58347.0,58345.0,0.3608]
[1726238861797,0.2,58351.0,58345.0,0.3608]
[1726238862085,0.085685,58350.0,58344.0,0.0062287]
[1726238862279,0.2,58349.0,58343.0,0.085695]
[1726238862479,0.3004,58349.0,58338.0,0.3608]
[1726238862685,0.085706,58337.0,58333.0,0.3608]
[1726238862893,0.084706,58336.0,58333.0,0.3608]
[1726238863186,0.3608,58345.0,58337.0,0.085703]
[1726238863385,0.085693,58345.0,58341.0,0.085697]
[1726238863583,0.085693,58345.0,58343.0,0.085695]
[1726238863989,0.875,58344.0,58333.0,0.367222]
[1726238864186,0.013,58347.0,58340.0,0.2]
[1726238864388,0.09869,58347.0,58340.0,0.2]
[1726238864691,0.013,58347.0,58345.0,0.085691]
[1726238864880,0.013,58347.0,58346.0,0.085691]
[1726238865694,0.085688,58348.0,58346.0,0.085691]
[1726238865988,0.085688,58348.0,58344.0,0.2]
[1726238866185,0.085691,58346.0,58344.0,0.2]
[1726238866390,0.084691,58346.0,58344.0,0.2]
[1726238866889,0.011,58347.0,58346.0,0.085691]
[1726238867282,0.011,58347.0,58346.0,1.646342]
[1726238868084,0.011,58347.0,58346.0,1.647342]
[1726238868085,0.025,58347.0,58346.0,1.647342]
[1726238868280,0.025,58347.0,58346.0,1.733033]
[1726238868481,0.004,58361.0,58353.0,0.285681]
[1726238868686,0.0047,58364.0,58353.0,0.285681]
[1726238868687,0.004,58371.0,58370.0,0.085656]
[1726238868885,0.08565,58375.0,58370.0,0.2]
[1726238869488,0.08565,58375.0,58367.0,0.2]
[1726238869988,0.08565,58375.0,58371.0,0.3608]
[1726238870198,0.08565,58374.0,58371.0,0.3608]
[1726238870895,0.085651,58373.0,58371.0,0.3608]
[1726238871793,0.015,58375.0,58371.0,0.3608]
[1726238872096,0.002,58375.0,58371.0,0.3608]
[1726238872593,0.003,58373.0,58371.0,0.002]
[1726238872896,0.5608,58372.0,58353.0,0.05039684]
[1726238873091,0.003,58373.0,58349.0,0.446485]
[1726238873092,0.085673,58359.0,58349.0,0.3608]
[1726238873286,0.3608,58363.0,58349.0,0.3608]
[1726238873287,0.2,58356.0,58349.0,0.3608]
[1726238873484,0.2,58356.0,58352.0,0.085681]
[1726238873991,0.085675,58357.0,58352.0,0.085681]
[1726238874485,0.08568,58354.0,58349.0,0.3608]
[1726238874796,0.446473,58358.0,58350.0,0.085684]
[1726238875098,0.085675,58357.0,58350.0,0.085684]
[1726238875297,0.085677,58356.0,58350.0,0.085684]
[1726238875693,0.002,58354.0,58350.0,0.285684]
[1726238875890,0.08768,58354.0,58350.0,0.2]
[1726238876195,0.085685,58350.0,58349.0,0.00832171]
[1726238876500,0.083685,58350.0,58349.0,0.00632171]
[1726238876689,0.002,58356.0,58348.0,0.3608]
[1726238876993,0.085694,58344.0,58341.0,0.11112886]
[1726238877192,0.084694,58344.0,58341.0,0.00642886]
[1726238877399,0.2,58349.0,58339.0,0.3608]
[1726238877591,0.3608,58351.0,58339.0,0.446501]
[1726238877785,0.3608,58351.0,58330.0,0.1003]
[1726238877786,0.085706,58336.0,58333.0,0.3608]
[1726238877990,0.085709,58334.0,58333.0,0.3608]
[1726238878389,0.446502,58339.0,58333.0,0.3608]
[1726238878592,0.085703,58338.0,58334.0,0.085708]
[1726238878990,0.00092,58339.0,58338.0,0.085703]
[1726238879401,0.085689,58348.0,58342.0,0.085697]
[1726238879596,0.085689,58348.0,58347.0,0.3608]
[1726238879799,0.085682,58352.0,58348.0,0.085688]
[1726238879995,0.1973,58353.0,58348.0,0.2]
[1726238879996,0.085682,58353.0,58348.0,0.2]
[1726238880296,0.002,58356.0,58350.0,0.085684]
[1726238880497,0.3608,58358.0,58348.0,0.6308]
[1726238880498,0.3608,58358.0,58353.0,0.3608]
[1726238880685,0.0954,58361.0,58353.0,0.3608]
[1726238880888,0.004,58370.0,58354.0,0.085678]
[1726238880889,0.085668,58362.0,58354.0,0.085678]
[1726238881090,0.085669,58361.0,58354.0,0.085678]
[1726238881293,0.08567,58360.0,58354.0,0.085678]
[1726238881605,0.085672,58359.0,58354.0,0.085678]
[1726238882703,0.085673,58358.0,58354.0,0.085678]
[1726238882999,0.085673,58358.0,58354.0,0.087678]
[1726238883402,0.085673,58358.0,58355.0,0.085678]
[1726238883699,0.006,58359.0,58358.0,0.085673]
[1726238883897,0.003,58359.0,58358.0,0.085673]
[1726238885101,0.004,58358.0,58357.0,0.63216]
[1726238885304,0.004,58358.0,58357.0,0.6308]
[1726238885800,0.005,58358.0,58357.0,1.830555]
[1726238885997,0.004,58358.0,58357.0,1.830555]
[1726238886193,0.009,58359.0,58358.0,0.086673]
[1726238886397,0.009,58359.0,58358.0,0.772099]
[1726238886597,0.005,58359.0,58358.0,1.372099]
[1726238886802,0.004,58372.0,58370.0,0.085655]
[1726238887106,0.08565,58374.0,58371.0,0.3608]
[1726238887894,0.0974,58379.0,58364.0,0.3608]
[1726238887895,0.085653,58372.0,58364.0,0.3608]
[1726238888091,0.085659,58368.0,58366.0,0.085662]
[1726238888290,0.085658,58369.0,58364.0,0.3608]
[1726238888501,0.085659,58368.0,58364.0,0.446464]
[1726238889095,0.457627,58376.0,58364.0,0.9916]
[1726238889096,0.10198,58376.0,58364.0,0.9916]
[1726238889397,0.1011,58376.0,58364.0,0.6308]
[1726238889591,0.1011,58376.0,58371.0,0.3608]
[1726238889902,0.1011,58376.0,58367.0,0.08566]
[1726238889903,0.009,58368.0,58367.0,0.08566]
[1726238890402,0.005,58368.0,58367.0,0.08566]
[1726238891104,0.005,58368.0,58367.0,0.09206467]
[1726238891307,0.005,58368.0,58367.0,0.53852467]
[1726238891807,0.008,58376.0,58375.0,0.085648]
[1726238892196,0.085648,58375.0,58373.0,0.3608]
[1726238892392,0.085659,58368.0,58367.0,0.36820467]
[1726238892597,0.089659,58368.0,58367.0,0.36920467]
[1726238893205,0.089659,58368.0,58367.0,0.36820467]
[1726238894007,0.093659,58368.0,58367.0,0.3628]
[1726238894999,0.089659,58368.0,58367.0,0.3618]
[1726238895200,0.089659,58368.0,58367.0,0.001]
[1726238896002,0.093659,58368.0,58367.0,0.002]
[1726238898709,0.179318,58368.0,58367.0,0.002]
[1726238898910,0.264977,58368.0,58367.0,0.002]
[1726238899210,0.085678,58355.0,58354.0,0.085679]
[1726238899404,0.085678,58355.0,58354.0,0.446479]
[1726238899608,0.085682,58352.0,58351.0,0.085684]
[1726238900713,0.085684,58351.0,58350.0,0.00677111]
[1726238900914,0.084684,58351.0,58349.0,0.085685]
[1726238901121,0.085685,58350.0,58349.0,0.085685]
[1726238901819,0.084685,58350.0,58349.0,0.085685]
[1726238902020,0.084685,58350.0,58348.0,0.36770355]
[1726238902207,0.01488797,58355.0,58348.0,0.00690355]
[1726238902208,0.085686,58349.0,58348.0,0.00690355]
[1726238902425,0.01488797,58355.0,58344.0,0.1023]
[1726238902426,0.085692,58345.0,58344.0,0.1023]
[1726238902816,0.083692,58345.0,58344.0,0.1023]
[1726238903512,0.2,58354.0,58344.0,0.001]
[1726238903513,0.006,58349.0,58344.0,0.001]
[1726238903718,0.085709,58334.0,58333.0,0.004]
[1726238903913,0.085709,58334.0,58323.0,0.49692084]
[1726238904112,0.085709,58334.0,58323.0,0.45330905]
[1726238904113,0.085717,58328.0,58323.0,0.45330905]
[1726238904507,0.085721,58326.0,58323.0,0.36758505]
[1726238904708,0.085711,58332.0,58323.0,0.36758505]
[1726238904910,0.08572,58326.0,58323.0,0.36758505]
[1726238905412,0.085723,58324.0,58323.0,0.36758505]
[1726238905614,0.085723,58324.0,58320.0,0.2]
[1726238905809,0.10977354,58333.0,58319.0,0.101]
[1726238905810,0.103,58333.0,58323.0,0.2]
[1726238906010,0.3608,58338.0,58330.0,0.085714]
[1726238906312,0.0857,58340.0,58335.0,0.355707]
[1726238906512,0.56796001,58343.0,58336.0,0.085705]
[1726238906815,0.57394388,58343.0,58331.0,0.085711]
[1726238907022,0.085708,58335.0,58330.0,0.27]
[1726238907327,0.085697,58342.0,58330.0,0.27]
[1726238907526,0.085706,58336.0,58335.0,0.001]
[1726238908214,0.085706,58336.0,58328.0,0.00684836]
[1726238908420,0.57888,58343.0,58335.0,0.085706]
[1726238908615,0.583,58343.0,58336.0,0.001]
[1726238909228,0.085704,58337.0,58336.0,0.001]
[1726238909435,0.085711,58332.0,58328.0,0.446517]
[1726238909719,0.001,58336.0,58330.0,0.085714]
[1726238909941,0.01,58336.0,58335.0,0.001]
[1726238910221,0.094706,58336.0,58335.0,0.001]
[1726238910519,0.003,58332.0,58328.0,0.3608]
[1726238910728,0.003,58332.0,58329.0,0.3608]
[1726238910913,0.003,58332.0,58323.0,0.09235964]
[1726238910914,0.3608,58331.0,58323.0,0.09235964]
[1726238911116,0.103,58330.0,58323.0,0.09235964]
[1726238911314,0.085722,58325.0,58323.0,0.09235964]
[1726238911721,0.085723,58325.0,58323.0,0.00663564]
[1726238911926,0.085723,58325.0,58322.0,0.3608]
[1726238912123,0.085719,58328.0,58322.0,0.3608]
[1726238912321,0.08572,58326.0,58322.0,0.3608]
[1726238912525,0.1967,58329.0,58325.0,0.085721]
[1726238912727,0.3608,58331.0,58322.0,0.3608]
[1726238912728,0.3608,58331.0,58322.0,0.36744832]
[1726238912926,0.003,58332.0,58331.0,0.085713]
[1726238913527,0.003,58332.0,58331.0,0.191513]
[1726238913828,0.085695,58344.0,58331.0,1.22012]
[1726238914133,0.4641,58345.0,58341.0,0.085698]
[1726238914134,0.085695,58343.0,58341.0,0.085698]
[1726238914626,0.085695,58343.0,58338.0,0.27]
[1726238914627,0.085697,58342.0,58338.0,0.355703]
[1726238914931,0.085695,58343.0,58338.0,0.27]
[1726238915121,0.085698,58342.0,58338.0,0.27]
[1726238915424,0.007,58344.0,58337.0,0.3608]
[1726238915735,0.01,58342.0,58341.0,0.085698]
[1726238916922,0.022,58342.0,58341.0,0.086698]
[1726238918027,0.012,58342.0,58341.0,0.086698]
[1726238918228,0.02,58342.0,58341.0,0.087698]
[1726238919228,0.02,58342.0,58341.0,0.002]
[1726238919229,0.466497,58342.0,58341.0,0.002]
[1726238919636,0.105697,58342.0,58341.0,0.002]
[1726238920235,0.02,58342.0,58341.0,0.002]
[1726238920432,0.02,58342.0,58341.0,0.087698]
[1726238924738,0.02,58342.0,58341.0,0.09441851]
[1726238927339,0.02,58342.0,58341.0,0.26581451]
[1726238929530,0.02,58342.0,58341.0,0.09441851]
[1726238930632,0.105697,58342.0,58341.0,0.00872051]
[1726238931335,0.02,58342.0,58341.0,0.09441851]
[1726238933246,0.02,58342.0,58341.0,1.38001451]
[1726238933633,0.02,58342.0,58341.0,1.29431651]
[1726238934146,0.02,58342.0,58341.0,1.56431651]
[1726238934834,0.02,58342.0,58341.0,0.96431651]
[1726238935139,0.02,58342.0,58341.0,1.56431651]
[1726238936535,0.02,58342.0,58341.0,2.28591651]
[1726238937141,0.02,58342.0,58341.0,1.08601851]
[1726238940251,0.02,58342.0,58341.0,1.01601851]
[1726238942943,0.02,58342.0,58341.0,2.26631335]
[1726238943142,0.02,58342.0,58341.0,2.21591651]
[1726238947558,0.02,58342.0,58341.0,0.81601851]
[1726238948050,0.02,58342.0,58341.0,2.10161451]
[1726238948243,0.02,58342.0,58341.0,2.06667025]
[1726238948440,0.02,58342.0,58341.0,2.01591651]
[1726238949239,0.02,58342.0,58341.0,2.10161451]
[1726238949446,0.02,58342.0,58341.0,2.06665932]
[1726238949645,0.02,58342.0,58341.0,2.01591651]
[1726238949851,0.02,58342.0,58341.0,0.81601851]
[1726238950054,0.105697,58342.0,58341.0,0.36952051]
[1726238950247,0.02,58342.0,58341.0,0.45521851]
[1726238950549,0.02,58342.0,58341.0,0.36952051]
[1726238950952,0.105697,58342.0,58341.0,0.36952051]
[1726238951147,0.02,58342.0,58341.0,0.36952051]
[1726238951345,0.02,58342.0,58341.0,0.45521851]
[1726238953542,0.02,58342.0,58341.0,0.65521851]
[1726238954467,0.02,58342.0,58341.0,0.74091651]
[1726238954970,0.105697,58342.0,58341.0,0.3628]
[1726238955159,1.1342,58342.0,58332.0,0.41290281]
[1726238955374,0.085706,58336.0,58331.0,0.00672081]
[1726238955660,0.085706,58336.0,58331.0,0.085712]
[1726238955857,0.085707,58335.0,58327.0,0.2]
[1726238956062,0.085707,58335.0,58328.0,0.085717]
[1726238956360,0.085709,58334.0,58328.0,0.085717]
[1726238956662,0.3608,58337.0,58331.0,0.001]
[1726238956663,0.085711,58332.0,58331.0,0.001]
[1726238956864,0.091706,58336.0,58331.0,0.001]
[1726238957064,0.085706,58336.0,58330.0,0.085714]
[1726238957360,0.085706,58336.0,58326.0,0.05074281]
[1726238957361,0.446514,58331.0,58325.0,0.3608]
[1726238957867,0.445514,58331.0,58325.0,0.3608]
[1726238958063,0.085714,58331.0,58325.0,0.3608]
[1726238958255,0.085714,58331.0,58325.0,0.36773145]
[1726238958560,0.006,58332.0,58328.0,0.085717]
[1726238958767,0.006,58332.0,58330.0,0.085714]
[1726238958955,0.006,58332.0,58326.0,0.085719]
[1726238959461,0.085713,58331.0,58326.0,0.085719]
[1726238959661,0.085712,58332.0,58326.0,0.085719]
[1726238960258,0.086712,58332.0,58326.0,0.085719]
[1726238960564,0.085716,58329.0,58326.0,0.001]
[1726238960869,0.085719,58327.0,58326.0,0.001]
[1726238961253,0.532238,58327.0,58326.0,0.001]
[1726238961761,1.732317,58327.0,58326.0,0.001]
[1726238961962,1.560879,58327.0,58315.0,0.085736]
[1726238962271,0.085735,58316.0,58315.0,0.085736]
[1726238962654,0.085737,58315.0,58312.0,0.00662695]
[1726238962966,0.285937,58315.0,58308.0,0.2]
[1726238963162,0.275937,58315.0,58308.0,0.2]
[1726238963960,0.277937,58315.0,58308.0,0.2]
[1726238964160,0.277937,58315.0,58312.0,0.085741]
[1726238964356,0.085739,58314.0,58308.0,0.09263987]
[1726238964561,0.2,58313.0,58308.0,0.09263987]
[1726238964761,0.085745,58310.0,58308.0,0.09263987]
[1726238964957,0.0984,58309.0,58300.0,0.2]
[1726238965267,0.184146,58309.0,58304.0,0.085752]
[1726238965461,0.184146,58309.0,58305.0,0.085751]
[1726238965965,0.184146,58309.0,58308.0,0.005]
[1726238966565,0.185146,58309.0,58305.0,0.095751]
[1726238966770,0.08575,58306.0,58305.0,0.01]
[1726238967273,0.09936001,58309.0,58308.0,0.088747]
[1726238967465,0.2002,58315.0,58314.0,0.085738]
[1726238967466,0.00088,58315.0,58314.0,0.085738]
[1726238967767,0.004,58323.0,58319.0,0.08573]
[1726238967768,0.085727,58322.0,58319.0,0.08573]
[1726238967964,0.085722,58325.0,58321.0,0.285726]
[1726238968166,0.2035,58326.0,58324.0,0.5608]
[1726238968471,0.2035,58326.0,58324.0,0.3608]
[1726238968970,0.085722,58325.0,58324.0,0.3608]
[1726238970062,0.2035,58326.0,58324.0,0.3608]
[1726238970264,0.2035,58326.0,58325.0,0.085722]
[1726238971461,0.2125,58326.0,58325.0,0.086722]
[1726238971867,0.2125,58326.0,58325.0,0.001]
[1726238972278,0.1152,58326.0,58325.0,0.086722]
[1726238972472,0.1152,58326.0,58325.0,0.447522]
[1726238972662,0.009,58326.0,58325.0,0.447522]
[1726238972861,0.023,58326.0,58325.0,0.447522]
[1726238973568,0.021,58326.0,58325.0,0.533244]
[1726238974065,0.021,58326.0,58325.0,0.618966]
[1726238974265,0.004,58337.0,58336.0,0.085706]
[1726238974476,0.00677101,58345.0,58336.0,1.007306]
[1726238974774,0.189884,58351.0,58346.0,0.08569]
[1726238974976,0.085686,58350.0,58349.0,0.3608]
[1726238976474,0.085686,58350.0,58342.0,0.27]
[1726238976475,0.085686,58350.0,58343.0,0.085694]
[1726238976669,0.11094853,58351.0,58343.0,0.3608]
[1726238976971,0.014,58350.0,58348.0,0.085687]
[1726238977471,0.014,58350.0,58349.0,0.446486]
[1726238977671,0.085671,58360.0,58349.0,0.3618]
[1726238977672,0.00662799,58359.0,58349.0,0.3618]
[1726238977871,0.097,58360.0,58358.0,0.3608]
[1726238978081,0.097,58360.0,58358.0,0.446472]
[1726238979476,0.097,58360.0,58359.0,0.085672]
[1726238979872,0.097,58360.0,58354.0,0.3608]
[1726238980083,0.01485621,58360.0,58359.0,0.085672]
[1726238980272,0.01485621,58360.0,58359.0,0.446472]
[1726238980273,0.008,58360.0,58359.0,0.446472]
[1726238980669,0.008,58360.0,58359.0,0.548672]
[1726238980871,0.00690768,58368.0,58367.0,0.08566]
[1726238981080,0.3608,58371.0,58367.0,0.08566]
[1726238981280,0.3608,58371.0,58366.0,0.3608]
[1726238981281,0.1042,58375.0,58366.0,0.6308]
[1726238981476,0.1042,58375.0,58373.0,0.08565]
[1726238981871,0.1042,58375.0,58374.0,0.08565]
[1726238982074,0.04421733,58377.0,58376.0,0.085647]
[1726238982371,0.04421733,58377.0,58374.0,0.3608]
[1726238982372,0.12986333,58377.0,58374.0,0.3608]
[1726238982577,0.04421733,58377.0,58374.0,0.446448]
[1726238983174,0.04421733,58377.0,58375.0,0.085648]
[1726238983377,0.05121733,58377.0,58376.0,0.086647]
[1726238984471,0.13686233,58377.0,58376.0,0.001]
[1726238984681,0.05121733,58377.0,58376.0,0.001]
[1726238985080,0.05121733,58377.0,58376.0,0.087647]
[1726238985590,0.04421733,58377.0,58376.0,0.086647]
[1726238985879,0.05121733,58377.0,58376.0,0.086647]
[1726238986275,0.05121733,58377.0,58376.0,0.001]
[1726238986475,0.12986233,58377.0,58376.0,0.001]
[1726238986689,0.05121733,58377.0,58376.0,0.087647]
[1726238986985,0.13686233,58377.0,58376.0,0.087647]
[1726238987283,0.05121733,58377.0,58376.0,0.087647]
[1726238987884,0.05121733,58377.0,58376.0,0.002]
[1726238988389,0.13686233,58377.0,58376.0,0.002]
[1726238988581,0.085651,58373.0,58372.0,0.00686248]
[1726238988887,0.085651,58373.0,58372.0,0.09251548]
[1726238989083,0.255651,58373.0,58372.0,0.09251548]
[1726238989679,0.085647,58376.0,58375.0,0.085648]
[1726238989886,0.04421733,58377.0,58376.0,0.085647]
[1726238990183,0.085651,58373.0,58372.0,0.086651]
[1726238990584,0.05114005,58377.0,58372.0,0.3618]
[1726238990785,0.085647,58376.0,58375.0,0.085647]
[1726238991090,0.092647,58376.0,58375.0,0.086647]
[1726238991793,0.007,58376.0,58375.0,0.086647]
[1726238992092,0.008,58376.0,58375.0,0.087647]
[1726238992589,0.001,58376.0,58375.0,0.086647]
[1726238993492,0.01,58376.0,58375.0,0.087647]
[1726238993898,0.095647,58376.0,58375.0,0.087647]
[1726238998791,0.095647,58376.0,58375.0,0.002]
[1726238998987,0.181294,58376.0,58375.0,0.002]
[1726238999187,0.095647,58376.0,58375.0,0.002]
[1726238999386,0.095647,58376.0,58375.0,0.087648]
[1726238999693,0.181294,58376.0,58375.0,0.002]
[1726239000487,0.095647,58376.0,58375.0,0.002]
[1726239000695,0.095647,58376.0,58375.0,0.087648]
[1726239001696,1.12392,58376.0,58365.0,0.085661]
[1726239001895,0.285666,58366.0,58365.0,0.085661]
[1726239002290,0.085667,58363.0,58362.0,0.085666]
[1726239004092,0.084667,58363.0,58362.0,0.085666]
[1726239004696,0.086667,58363.0,58362.0,0.086666]
[1726239005396,0.002,58363.0,58362.0,0.086666]
[1726239006401,0.085679,58354.0,58348.0,0.3608]
[1726239006696,0.085684,58351.0,58349.0,0.00676674]
[1726239006902,0.2,58357.0,58348.0,0.4603]
[1726239006903,0.085671,58360.0,58348.0,0.46194]
[1726239007099,0.05409191,58359.0,58348.0,0.46194]
[1726239007294,0.05409191,58359.0,58348.0,0.36748753]
[1726239007295,0.085686,58349.0,58348.0,0.36748753]
[1726239007504,0.085686,58349.0,58348.0,0.00668753]
[1726239007691,0.084692,58345.0,58344.0,0.3608]
[1726239008092,0.083692,58345.0,58344.0,0.3608]
[1726239008399,0.003,58351.0,58346.0,0.08569]
[1726239008594,0.00986497,58351.0,58346.0,0.08569]
[1726239008897,0.089688,58349.0,58344.0,0.3608]
[1726239009205,0.004,58349.0,58348.0,0.085688]
[1726239009389,0.004,58349.0,58348.0,0.086688]
[1726239009390,0.009,58349.0,58348.0,0.086688]
[1726239010304,0.01067603,58360.0,58359.0,0.085672]
[1726239010600,0.0046,58369.0,58359.0,0.085672]
[1726239010601,0.085659,58368.0,58359.0,0.5608]
[1726239010797,0.516,58375.0,58365.0,0.085663]
[1726239010999,0.601649,58375.0,58365.0,0.085663]
[1726239011300,0.3608,58372.0,58366.0,0.08566]
[1726239011607,0.08566,58368.0,58367.0,0.08566]
[1726239011793,0.085653,58372.0,58370.0,0.085654]
[1726239012002,0.5226293,58375.0,58370.0,0.085654]
[1726239012200,0.085654,58371.0,58370.0,0.085654]
[1726239012401,0.085657,58370.0,58367.0,0.3608]
[1726239012997,0.085657,58370.0,58369.0,0.085657]
[1726239013202,0.5305093,58375.0,58367.0,0.3608]
[1726239013402,0.085654,58371.0,58370.0,0.085656]
[1726239013703,0.085651,58374.0,58372.0,0.085651]
[1726239013899,0.085655,58371.0,58368.0,0.085658]
[1726239014307,0.085655,58371.0,58369.0,0.085656]
[1726239014705,0.097655,58371.0,58370.0,0.086656]
[1726239015103,0.012,58371.0,58370.0,0.086656]
[1726239016307,0.097654,58371.0,58370.0,0.086656]
[1726239016493,0.012,58371.0,58370.0,0.086656]
[1726239016899,0.012,58371.0,58367.0,0.5618]
[1726239016900,0.009,58371.0,58369.0,0.001]
[1726239017209,0.300654,58371.0,58370.0,0.001]
[1726239018209,0.300654,58371.0,58370.0,0.002]
[1726239020703,0.832762,58371.0,58370.0,0.002]
[1726239022299,0.832762,58371.0,58352.0,0.3608]
[1726239022300,0.085675,58358.0,58357.0,0.446474]
[1726239022607,0.085675,58358.0,58357.0,0.085674]
[1726239022806,0.085675,58358.0,58357.0,0.446474]
[1726239023603,0.095675,58358.0,58357.0,0.447474]
[1726239023912,0.016,58358.0,58357.0,0.534149]
[1726239024209,0.016,58358.0,58357.0,1.733904]
[1726239024909,0.008,58358.0,58357.0,1.733904]
[1726239028416,0.008,58358.0,58357.0,1.048229]
[1726239028612,0.008,58358.0,58357.0,0.534149]
[1726239030624,0.008,58358.0,58357.0,0.448475]
[1726239032611,0.008,58358.0,58357.0,0.53415]
[1726239032816,0.008,58358.0,58357.0,1.04823]
[1726239033017,0.008,58358.0,58357.0,1.18478456]
[1726239034011,0.008,58358.0,58357.0,1.78478456]
[1726239034213,0.008,58358.0,58357.0,1.733905]
[1726239035214,0.008,58358.0,58357.0,1.78480603]
[1726239036306,0.008,58358.0,58357.0,1.733905]
[1726239037311,1e-06,58358.0,58357.0,1.81958]
[1726239037724,1e-06,58358.0,58357.0,1.8704858]
[1726239037910,1e-06,58358.0,58357.0,1.81958]
[1726239040311,1e-06,58358.0,58357.0,1.88762153]
[1726239040909,1e-06,58358.0,58357.0,1.81958]
[1726239043021,1e-06,58358.0,58357.0,1.88766498]
[1726239043523,1e-06,58358.0,58357.0,1.81958]
[1726239044219,1e-06,58358.0,58357.0,1.88766498]
[1726239045119,1e-06,58358.0,58357.0,0.619825]
[1726239046420,1e-06,58358.0,58357.0,1.733905]
[1726239046622,1e-06,58358.0,58357.0,1.90437927]
[1726239046815,1e-06,58358.0,58357.0,2.00541553]
[1726239047021,1e-06,58358.0,58357.0,1.92061626]
[1726239047617,0.004,58370.0,58369.0,0.171314]
[1726239047815,0.04421733,58377.0,58376.0,0.085647]
[1726239048023,0.04421733,58377.0,58376.0,0.646447]
[1726239048616,0.12986233,58377.0,58376.0,0.3608]
[1726239049015,0.12986233,58377.0,58376.0,0.3618]
[1726239049218,0.13286233,58377.0,58376.0,0.3628]
[1726239050515,0.04721733,58377.0,58376.0,0.448447]
[1726239050916,0.13286233,58377.0,58376.0,0.002]
[1726239051427,0.13286233,58377.0,58376.0,0.00900493]
[1726239051622,0.13286233,58377.0,58376.0,0.002]
[1726239052420,0.13286233,58377.0,58376.0,0.087647]
[1726239052829,0.18788609,58377.0,58376.0,0.087647]
[1726239053234,0.2735288,58377.0,58376.0,0.002]
[1726239053567,1.38741135,58377.0,58376.0,0.002]
[1726239053634,0.085653,58372.0,58371.0,0.085653]
[1726239055217,0.088653,58372.0,58371.0,0.086653]
[1726239055417,0.089653,58372.0,58371.0,0.087653]
[1726239055922,0.004,58372.0,58371.0,0.087653]
[1726239060935,0.004,58372.0,58371.0,0.002]
[1726239061140,0.004,58372.0,58371.0,0.087654]
[1726239065833,0.004,58372.0,58371.0,0.002]
[1726239066129,0.089653,58372.0,58371.0,0.002]
[1726239066535,0.089653,58372.0,58371.0,0.087654]
[1726239066732,0.089653,58372.0,58371.0,0.002]
[1726239067240,0.51396,58371.0,58357.0,0.00164]
[1726239067426,0.085677,58356.0,58353.0,0.00714207]
[1726239067729,0.2,58360.0,58353.0,0.08568]
[1726239067730,0.085679,58354.0,58353.0,0.08568]
[1726239067919,0.085679,58354.0,58350.0,0.2]
[1726239067920,0.0959,58355.0,58354.0,0.085679]
[1726239068125,0.0959,58355.0,58354.0,0.285679]
[1726239069136,0.085681,58353.0,58346.0,0.3608]
[1726239069439,0.2,58353.0,58348.0,0.085688]
[1726239069827,0.285682,58353.0,58349.0,0.085686]
[1726239070033,0.51412,58351.0,58349.0,0.085686]
[1726239070230,0.0987,58352.0,58351.0,0.085684]
[1726239071048,0.0987,58352.0,58351.0,0.646484]
[1726239071237,0.009,58353.0,58352.0,0.085682]
[1726239071940,0.004,58353.0,58352.0,0.085682]
[1726239072440,0.0987,58359.0,58351.0,0.56344]
[1726239072640,0.0987,58359.0,58355.0,0.085677]
[1726239073240,0.184372,58359.0,58355.0,0.085677]
[1726239073727,0.190372,58359.0,58356.0,0.085676]
[1726239074334,0.190372,58359.0,58357.0,0.085674]
[1726239075041,0.195372,58359.0,58357.0,0.085674]
[1726239075442,0.1097,58359.0,58358.0,0.085673]
[1726239077433,0.195372,58359.0,58358.0,0.085673]
[1726239077640,1.22278,58359.0,58358.0,0.002]
[1726239077837,0.708452,58359.0,58358.0,0.002]
[1726239078042,0.194372,58359.0,58358.0,0.087673]